bitfinex/quotes_BTCUSD_20250523
["timestamp","ask_amount","ask_price","bid_price","bid_amount"]
[1748020161377,0.34546507,109250.0,109240.0,0.01183485]
[1748020161579,0.34546507,109250.0,109240.0,0.28615485]
[1748020161784,0.34546507,109250.0,109240.0,0.27982806]
[1748020162014,0.34546507,109250.0,109240.0,0.27782806]
[1748020162225,0.43444894,109250.0,109240.0,0.27482806]
[1748020162629,0.43644894,109250.0,109240.0,0.27482806]
[1748020162840,0.43444894,109250.0,109240.0,0.27682806]
[1748020163439,0.43444894,109250.0,109240.0,0.27482806]
[1748020163795,0.43644894,109250.0,109240.0,0.27482806]
[1748020164215,0.43644894,109250.0,109240.0,0.00050806]
[1748020164419,0.43644894,109250.0,109240.0,0.27482806]
[1748020164621,0.43644894,109250.0,109240.0,0.00050806]
[1748020164824,0.43744894,109250.0,109240.0,0.00050806]
[1748020165011,0.43744894,109250.0,109240.0,0.27486806]
[1748020166007,0.83225957,109250.0,109240.0,0.00050806]
[1748020166482,0.79875774,109250.0,109240.0,0.00050806]
[1748020167252,0.43744894,109250.0,109240.0,0.00050806]
[1748020167508,0.34846507,109250.0,109240.0,0.00050806]
[1748020167730,0.31536507,109250.0,109240.0,0.00050806]
[1748020168927,0.34536507,109250.0,109240.0,0.00050806]
[1748020170623,0.71667387,109250.0,109240.0,0.00050806]
[1748020170846,0.71720699,109250.0,109240.0,0.00050806]
[1748020171072,1.1567285,109250.0,109240.0,0.00050806]
[1748020172405,1.1547285,109250.0,109240.0,0.00050806]
[1748020173051,1.1577285,109250.0,109240.0,0.00050806]
[1748020173482,1.4320885,109250.0,109240.0,0.00050806]
[1748020173717,1.4310885,109250.0,109240.0,0.00050806]
[1748020173919,1.4340885,109250.0,109240.0,0.00050806]
[1748020174372,1.4689785,109250.0,109240.0,0.00050806]
[1748020175304,1.4629785,109250.0,109240.0,0.00050806]
[1748020175538,1.4944475,109250.0,109240.0,0.00050806]
[1748020175768,1.4974475,109250.0,109240.0,0.00050806]
[1748020176195,0.19234283,109180.0,109170.0,0.29030003]
[1748020176371,0.28188839,109180.0,109170.0,1.05446003]
[1748020176580,0.28188839,109180.0,109170.0,1.06077661]
[1748020176990,0.28188839,109180.0,109170.0,1.06919598]
[1748020177155,0.28188839,109180.0,109170.0,1.05953]
[1748020177363,0.28188839,109180.0,109170.0,1.52629045]
[1748020177561,0.28188839,109180.0,109170.0,1.56852749]
[1748020177562,0.28239575,109180.0,109170.0,1.56852749]
[1748020177766,0.28239575,109180.0,109170.0,1.57452749]
[1748020177995,0.28239575,109180.0,109170.0,1.2847335]
[1748020178196,0.28239575,109180.0,109170.0,1.11869301]
[1748020178414,0.28239575,109180.0,109170.0,1.30189352]
[1748020178667,0.28239575,109180.0,109170.0,1.11869301]
[1748020179054,0.2915546,109180.0,109170.0,1.31105346]
[1748020179270,0.2915546,109180.0,109170.0,1.38977308]
[1748020179726,0.2915546,109180.0,109170.0,1.39893277]
[1748020179942,0.30071378,109180.0,109170.0,1.39893235]
[1748020180202,0.30071378,109180.0,109170.0,1.38977241]
[1748020180203,0.2915546,109180.0,109170.0,1.38977241]
[1748020181496,0.30071378,109180.0,109170.0,1.38977241]
[1748020182024,0.30071378,109180.0,109170.0,1.72115299]
[1748020182456,0.30071378,109180.0,109170.0,1.72119299]
[1748020183055,0.3007131,109180.0,109170.0,1.72981079]
[1748020183672,0.3007131,109180.0,109170.0,1.7114915]
[1748020184096,0.29155451,109180.0,109170.0,1.70233173]
[1748020184664,0.29155451,109180.0,109170.0,1.7114915]
[1748020184871,0.28239566,109180.0,109170.0,1.70233173]
[1748020185096,0.27323665,109180.0,109170.0,0.46613137]
[1748020185306,0.27323665,109180.0,109170.0,0.53023137]
[1748020185514,0.27323665,109180.0,109170.0,1.51379137]
[1748020186836,0.27323665,109180.0,109170.0,1.50579137]
[1748020187243,0.27323665,109180.0,109170.0,1.50779137]
[1748020187463,0.27323665,109180.0,109170.0,1.50179137]
[1748020187891,0.27323665,109180.0,109170.0,1.50279137]
[1748020188087,0.27323665,109180.0,109170.0,0.85923137]
[1748020188269,0.27323665,109180.0,109170.0,1.50211137]
[1748020188855,0.27300374,109180.0,109170.0,1.50211137]
[1748020189280,0.00050736,109180.0,109170.0,1.71279094]
[1748020190115,0.00050736,109180.0,109170.0,1.70437157]
[1748020191126,0.20149379,109200.0,109190.0,0.61454122]
[1748020191127,0.01831442,109200.0,109190.0,0.61454122]
[1748020191343,0.30026041,109200.0,109190.0,1.25742139]
[1748020191708,0.30026041,109200.0,109190.0,1.27289589]
[1748020191914,0.09879514,109200.0,109190.0,1.29067145]
[1748020192126,0.10795206,109200.0,109190.0,1.29067145]
[1748020192331,0.09879514,109200.0,109190.0,1.29067145]
[1748020192545,0.10895206,109200.0,109190.0,1.29067145]
[1748020192765,0.29210316,109200.0,109190.0,0.99781438]
[1748020192981,0.32250316,109200.0,109190.0,0.99781438]
[1748020193406,0.32350316,109200.0,109190.0,0.99781438]
[1748020194294,0.32150316,109200.0,109190.0,0.99781438]
[1748020195396,0.32150316,109200.0,109190.0,0.98919658]
[1748020196036,0.32150316,109200.0,109190.0,0.99782835]
[1748020197851,0.29110316,109200.0,109190.0,0.99782835]
[1748020198075,0.29110316,109200.0,109190.0,1.25215356]
[1748020198329,0.01840658,109200.0,109190.0,1.27962742]
[1748020198575,0.00924958,109200.0,109190.0,1.27962742]
[1748020199037,9.283e-05,109200.0,109190.0,1.27962742]
[1748020199635,0.00924966,109200.0,109190.0,1.27962742]
[1748020200227,0.00924966,109200.0,109190.0,1.28262742]
[1748020200656,0.00924958,109200.0,109190.0,1.28462742]
[1748020200872,0.00924958,109200.0,109190.0,1.27831084]
[1748020201517,0.00924958,109200.0,109190.0,1.28463792]
[1748020201761,0.0184065,109200.0,109190.0,1.28463792]
[1748020201959,0.00924958,109200.0,109190.0,1.28463792]
[1748020203042,0.0184065,109200.0,109190.0,1.28463792]
[1748020203261,0.00924958,109200.0,109190.0,1.28463792]
[1748020203477,0.01115449,109230.0,109220.0,0.55058312]
[1748020203684,0.002,109230.0,109220.0,1.65989844]
[1748020203893,0.002,109230.0,109220.0,1.67485729]
[1748020204377,0.002,109230.0,109220.0,1.67484689]
[1748020205492,0.002,109230.0,109220.0,2.04306689]
[1748020205677,0.003,109230.0,109220.0,2.04306689]
[1748020206091,0.002,109230.0,109220.0,2.04306689]
[1748020206292,0.21252622,109250.0,109240.0,0.35830771]
[1748020206501,0.21252622,109250.0,109240.0,1.17499709]
[1748020206713,0.21252622,109250.0,109240.0,1.18131377]
[1748020207331,0.20337333,109250.0,109240.0,1.18131377]
[1748020207541,0.20337333,109250.0,109240.0,1.21478462]
[1748020207737,0.19422027,109250.0,109240.0,1.21478462]
[1748020208268,0.19522027,109250.0,109240.0,1.21478462]
[1748020208787,0.19522027,109250.0,109240.0,1.20563064]
[1748020208988,0.19522027,109250.0,109240.0,1.21478479]
[1748020209223,0.19622027,109250.0,109240.0,1.22393886]
[1748020209847,0.19622027,109250.0,109240.0,0.58117886]
[1748020210051,0.19622027,109250.0,109240.0,1.22381886]
[1748020210892,0.18706696,109250.0,109240.0,1.22381886]
[1748020211516,0.18706696,109250.0,109240.0,1.21750218]
[1748020212046,0.18706696,109250.0,109240.0,1.025265]
[1748020212660,0.18706696,109250.0,109240.0,0.382625]
[1748020212868,0.18706696,109250.0,109240.0,1.025265]
[1748020213103,0.18706696,109250.0,109240.0,0.37347085]
[1748020213299,0.18706696,109250.0,109240.0,1.01611085]
[1748020214711,0.18706696,109250.0,109240.0,0.37347085]
[1748020214942,0.34031252,109250.0,109240.0,0.70839155]
[1748020215164,0.34031252,109250.0,109240.0,0.98275155]
[1748020219117,0.34031252,109250.0,109240.0,0.98199155]
[1748020219778,0.34031252,109250.0,109240.0,0.34015155]
[1748020220336,0.34031252,109250.0,109240.0,0.98199155]
[1748020221238,0.34031252,109250.0,109240.0,0.34015155]
[1748020221443,0.34031252,109250.0,109240.0,0.98199155]
[1748020221864,0.34031252,109250.0,109240.0,0.00015155]
[1748020222300,0.34031252,109250.0,109240.0,0.64199155]
[1748020223136,0.34031252,109250.0,109240.0,0.27451155]
[1748020225519,0.34031252,109250.0,109240.0,0.00015155]
[1748020225700,0.34031252,109250.0,109240.0,0.27451155]
[1748020227514,0.26300927,109230.0,109220.0,0.14065859]
[1748020227737,0.35255483,109230.0,109220.0,0.14081018]
[1748020227952,0.35255483,109230.0,109220.0,0.78269018]
[1748020228758,0.35255483,109230.0,109220.0,0.78469018]
[1748020229110,1.04225483,109230.0,109220.0,0.78469018]
[1748020229267,1.04225483,109230.0,109220.0,0.78269018]
[1748020229510,1.04225483,109230.0,109220.0,0.78369018]
[1748020229882,1.04225483,109230.0,109220.0,0.78469018]
[1748020230873,1.13177634,109230.0,109220.0,0.78469018]
[1748020231076,1.13177634,109230.0,109220.0,0.51033018]
[1748020231281,1.13177634,109230.0,109220.0,0.41721018]
[1748020231487,1.17727634,109230.0,109220.0,0.14281018]
[1748020231696,1.53911826,109230.0,109220.0,0.14281018]
[1748020231896,1.17727634,109230.0,109220.0,0.14281018]
[1748020232560,1.17727634,109230.0,109220.0,0.14181018]
[1748020232799,1.18327634,109230.0,109220.0,0.14081018]
[1748020233172,1.18327634,109230.0,109220.0,0.00015159]
[1748020233545,1.18527634,109230.0,109220.0,0.00015159]
[1748020234546,1.04525483,109230.0,109220.0,0.27455159]
[1748020234772,0.32555483,109230.0,109220.0,0.27455159]
[1748020235215,0.32555483,109230.0,109220.0,0.00015159]
[1748020235422,0.32555483,109230.0,109220.0,0.64211159]
[1748020235987,0.29395483,109230.0,109220.0,0.64211159]
[1748020244268,0.32415483,109230.0,109220.0,0.64211159]
[1748020248286,0.32415483,109230.0,109220.0,0.64842994]
[1748020248505,0.35665483,109230.0,109220.0,0.00646994]
[1748020248711,0.35665483,109230.0,109220.0,0.28086994]
[1748020248921,0.35665483,109230.0,109220.0,0.00015159]
[1748020249142,0.44617634,109230.0,109220.0,0.00015159]
[1748020250547,0.35665483,109230.0,109220.0,0.00015159]
[1748020253432,0.71849675,109230.0,109220.0,0.00015159]
[1748020253660,0.35665483,109230.0,109220.0,0.00015159]
[1748020256379,0.72349675,109230.0,109220.0,0.00015159]
[1748020261186,0.35665483,109230.0,109220.0,0.00015159]
[1748020261361,0.44617634,109230.0,109220.0,0.00015159]
[1748020261790,0.19232529,109190.0,109180.0,0.19234279]
[1748020262031,0.28187085,109190.0,109180.0,0.55933438]
[1748020262190,0.28187085,109190.0,109180.0,0.59600088]
[1748020262823,0.28187085,109190.0,109180.0,0.60463913]
[1748020262995,0.28187085,109190.0,109180.0,0.87907913]
[1748020263224,0.28187085,109190.0,109180.0,0.68973634]
[1748020263432,0.28187085,109190.0,109180.0,0.69373634]
[1748020264963,0.28187085,109190.0,109180.0,0.73203634]
[1748020265518,0.28187085,109190.0,109180.0,0.72339809]
[1748020266642,0.28187085,109190.0,109180.0,1.06339809]
[1748020270450,0.28187085,109190.0,109180.0,1.05579809]
[1748020270663,0.28187085,109190.0,109180.0,1.02513809]
[1748020270877,0.34447085,109190.0,109180.0,0.41065809]
[1748020271089,0.34447085,109190.0,109180.0,0.68513809]
[1748020271303,0.34447085,109190.0,109180.0,0.69358111]
[1748020271906,0.34447085,109190.0,109180.0,0.05226111]
[1748020272117,0.34447085,109190.0,109180.0,0.69358111]
[1748020274268,0.08954556,109190.0,109180.0,0.63472138]
[1748020274482,0.21062159,109200.0,109190.0,0.58148339]
[1748020274688,0.30016757,109200.0,109190.0,0.59064148]
[1748020274896,0.29101049,109200.0,109190.0,0.58148339]
[1748020275104,0.28185324,109200.0,109190.0,0.58148339]
[1748020275536,0.28185324,109200.0,109190.0,0.58348339]
[1748020275743,0.28185324,109200.0,109190.0,0.59212653]
[1748020275954,0.28185324,109200.0,109190.0,0.58496835]
[1748020276135,0.28185324,109200.0,109190.0,0.57736835]
[1748020277077,0.27269574,109200.0,109190.0,0.57736835]
[1748020278423,0.27269574,109200.0,109190.0,0.85184835]
[1748020279226,0.27269574,109200.0,109190.0,0.57736835]
[1748020279429,0.27269574,109200.0,109190.0,0.85184835]
[1748020279637,0.27269574,109200.0,109190.0,0.81944843]
[1748020280082,0.27269574,109200.0,109190.0,1.22384669]
[1748020280653,0.27269574,109200.0,109190.0,1.23300487]
[1748020282021,0.27269574,109200.0,109190.0,1.21468843]
[1748020282819,0.27269574,109200.0,109190.0,1.22384661]
[1748020284061,0.28185316,109200.0,109190.0,1.27396271]
[1748020284689,0.28185316,109200.0,109190.0,1.2648047]
[1748020285586,0.19228991,109210.0,109200.0,0.19230752]
[1748020285797,0.28183547,109210.0,109200.0,0.55834752]
[1748020286005,0.27267897,109210.0,109200.0,0.36604]
[1748020286210,0.30367897,109210.0,109200.0,0.3751975]
[1748020286630,0.30367897,109210.0,109200.0,0.55834768]
[1748020287446,0.30367897,109210.0,109200.0,0.55934768]
[1748020287854,0.30367897,109210.0,109200.0,0.5685051]
[1748020288093,0.30367897,109210.0,109200.0,0.5695051]
[1748020288787,0.30367897,109210.0,109200.0,0.56034768]
[1748020289363,0.30367897,109210.0,109200.0,0.3771975]
[1748020289706,0.30367897,109210.0,109200.0,0.36804]
[1748020290650,0.30367897,109210.0,109200.0,0.55119018]
[1748020291288,0.30367897,109210.0,109200.0,0.5603476]
[1748020291497,0.30367897,109210.0,109200.0,0.36804]
[1748020292184,0.30367897,109210.0,109200.0,0.64252]
[1748020292401,0.33647897,109210.0,109200.0,0.64252]
[1748020293379,0.33647897,109210.0,109200.0,0.36804]
[1748020293713,0.33647897,109210.0,109200.0,0.64248]
[1748020294131,0.33647897,109210.0,109200.0,0.002]
[1748020294336,0.33647897,109210.0,109200.0,0.64248]
[1748020294543,0.33647897,109210.0,109200.0,0.65093134]
[1748020295301,0.30367897,109210.0,109200.0,0.65093134]
[1748020295509,0.30367897,109210.0,109200.0,0.64248]
[1748020297431,0.31283564,109210.0,109200.0,1.16563018]
[1748020297635,0.29099205,109210.0,109200.0,1.18394502]
[1748020297817,0.29099205,109210.0,109200.0,1.17478768]
[1748020298016,0.29099205,109210.0,109200.0,1.1747876]
[1748020298237,0.29099205,109210.0,109200.0,1.18394494]
[1748020298572,0.29099205,109210.0,109200.0,1.1747876]
[1748020298776,0.29099205,109210.0,109200.0,0.9911317]
[1748020298921,0.29099205,109210.0,109200.0,1.17428188]
[1748020299116,0.29099205,109210.0,109200.0,1.19259663]
[1748020299385,0.11701463,109210.0,109200.0,1.24201072]
[1748020299712,0.30930513,109210.0,109200.0,1.23285371]
[1748020299930,0.04025541,109220.0,109210.0,0.55060265]
[1748020300167,0.04025541,109220.0,109210.0,0.54144649]
[1748020300168,0.30928426,109220.0,109210.0,0.54144649]
[1748020300405,0.21058287,109220.0,109210.0,0.59115882]
[1748020300585,0.21973861,109220.0,109210.0,0.59115882]
[1748020300825,0.21973861,109220.0,109210.0,0.58200274]
[1748020301030,0.21058345,109220.0,109210.0,0.54144666]
[1748020301178,0.23442804,109220.0,109210.0,0.55925486]
[1748020301598,0.23442804,109220.0,109210.0,0.56841127]
[1748020301774,0.31481794,109220.0,109210.0,0.3486517]
[1748020302202,0.34551794,109220.0,109210.0,0.0086517]
[1748020302405,0.34551794,109220.0,109210.0,0.9890917]
[1748020302790,0.34551794,109220.0,109210.0,0.98044]
[1748020303898,0.31481794,109220.0,109210.0,1.16357341]
[1748020304122,0.31481794,109220.0,109210.0,1.17272999]
[1748020304338,0.3056622,109220.0,109210.0,0.98044]
[1748020304954,0.3056622,109220.0,109210.0,0.34]
[1748020305140,0.3056622,109220.0,109210.0,0.98044]
[1748020305371,0.3056622,109220.0,109210.0,0.98909194]
[1748020307525,0.00915541,109220.0,109210.0,1.19969434]
[1748020307781,0.002,109230.0,109220.0,0.59173878]
[1748020308019,0.002,109230.0,109220.0,0.68888434]
[1748020309112,0.002,109230.0,109220.0,0.71203224]
[1748020309324,0.002,109230.0,109220.0,0.71503224]
[1748020309538,0.002,109230.0,109220.0,0.71603224]
[1748020309946,0.002,109230.0,109220.0,1.08125224]
[1748020310373,0.002,109230.0,109220.0,1.08525224]
[1748020311491,0.002,109230.0,109220.0,1.0960263]
[1748020312246,0.002,109230.0,109220.0,1.08168193]
[1748020315496,0.002,109230.0,109220.0,1.73598278]
[1748020315726,0.002,109230.0,109220.0,1.84821178]
[1748020315932,0.002,109230.0,109220.0,1.73598278]
[1748020316571,0.002,109250.0,109220.0,1.73598278]
[1748020316780,0.01115273,109250.0,109240.0,0.21054456]
[1748020316997,0.02030554,109250.0,109240.0,0.85030456]
[1748020317214,0.07001175,109250.0,109240.0,1.22562829]
[1748020318069,0.07001175,109250.0,109240.0,1.23528023]
[1748020318408,0.25307811,109250.0,109240.0,0.96092023]
[1748020318615,0.0608586,109250.0,109240.0,1.23528023]
[1748020319450,0.0608586,109250.0,109240.0,1.23628023]
[1748020320278,0.06085852,109250.0,109240.0,1.23628023]
[1748020320721,0.002,109250.0,109240.0,1.23628023]
[1748020320915,0.002,109250.0,109240.0,1.60768023]
[1748020321535,0.01115264,109250.0,109240.0,1.60768023]
[1748020321737,0.01115264,109250.0,109240.0,0.96792023]
[1748020321947,0.01115264,109250.0,109240.0,1.60660023]
[1748020321948,0.01115256,109250.0,109240.0,1.60660023]
[1748020322170,0.07385097,109270.0,109250.0,0.34]
[1748020322375,0.002,109270.0,109260.0,0.85247361]
[1748020322593,0.002,109270.0,109260.0,1.22208602]
[1748020322789,0.08159767,109300.0,109290.0,0.55044824]
[1748020323004,0.36327447,109300.0,109290.0,1.57597886]
[1748020323227,0.37242334,109300.0,109290.0,1.56682923]
[1748020323421,0.36327488,109300.0,109290.0,1.55767935]
[1748020323616,0.36378237,109300.0,109290.0,1.57597919]
[1748020323853,0.17165063,109300.0,109290.0,1.5942782]
[1748020324067,0.04910507,109300.0,109290.0,1.5942782]
[1748020324284,0.24123681,109300.0,109290.0,1.59427836]
[1748020324496,0.24123681,109300.0,109290.0,1.58512882]
[1748020324916,0.27423681,109300.0,109290.0,1.59378076]
[1748020325337,0.07295595,109300.0,109290.0,1.60293014]
[1748020325548,0.05825345,109300.0,109290.0,1.60293014]
[1748020325756,0.04910466,109300.0,109290.0,1.60293014]
[1748020325973,0.00965595,109300.0,109290.0,1.60293014]
[1748020326403,0.01880457,109300.0,109290.0,1.60293014]
[1748020326617,0.01880449,109300.0,109290.0,1.60293014]
[1748020326839,0.06890198,109300.0,109290.0,1.60293014]
[1748020327076,0.0689019,109300.0,109290.0,1.60293014]
[1748020327305,0.05975311,109300.0,109290.0,1.60293014]
[1748020327961,0.05060449,109300.0,109290.0,1.60293014]
[1748020328171,0.06890199,109300.0,109290.0,1.60293014]
[1748020328387,0.07805095,109300.0,109290.0,1.26293014]
[1748020329311,0.26103356,109300.0,109290.0,1.26293014]
[1748020329517,0.06890199,109300.0,109290.0,1.26293014]
[1748020329931,0.07805095,109300.0,109290.0,1.26293014]
[1748020330343,0.07805095,109300.0,109290.0,1.60293014]
[1748020330602,0.00965586,109300.0,109290.0,1.60293014]
[1748020330842,0.0418472,109320.0,109300.0,0.53213115]
[1748020331049,0.21953802,109320.0,109310.0,0.85221631]
[1748020331253,0.23274387,109320.0,109310.0,0.82248587]
[1748020331469,0.23274387,109320.0,109310.0,1.17163416]
[1748020331888,0.23274387,109320.0,109310.0,0.97952]
[1748020332113,0.32228943,109320.0,109310.0,0.97952]
[1748020332323,0.32228943,109320.0,109310.0,0.98817194]
[1748020332988,0.32328943,109320.0,109310.0,0.98817194]
[1748020333818,0.35468943,109320.0,109310.0,0.98817194]
[1748020334473,0.35468943,109320.0,109310.0,0.37389194]
[1748020334924,0.35468943,109320.0,109310.0,0.37385194]
[1748020335581,0.35468943,109320.0,109310.0,0.00865194]
[1748020335800,1.80000455,109320.0,109310.0,0.00865194]
[1748020336018,0.25651399,109310.0,109300.0,0.37688565]
[1748020336240,0.34605955,109310.0,109300.0,0.64031159]
[1748020337120,0.68605955,109310.0,109300.0,0.36611159]
[1748020337337,0.68605955,109310.0,109300.0,0.64031159]
[1748020338668,0.69105955,109310.0,109300.0,0.64031159]
[1748020339092,0.69105955,109310.0,109300.0,0.36611159]
[1748020339294,0.69105955,109310.0,109300.0,0.64031159]
[1748020339919,0.35105955,109310.0,109300.0,0.64031159]
[1748020340563,0.09454556,109310.0,109300.0,0.85074082]
[1748020340817,0.005,109310.0,109300.0,0.85988936]
[1748020341029,0.01414754,109310.0,109300.0,0.85988936]
[1748020341236,0.01114754,109310.0,109300.0,0.87423373]
[1748020341460,0.01829524,109310.0,109300.0,0.87423373]
[1748020341677,0.00914754,109310.0,109300.0,0.87423373]
[1748020342120,0.01829524,109310.0,109300.0,0.87423373]
[1748020342581,0.24973814,109320.0,109310.0,0.19211399]
[1748020342769,0.3392837,109320.0,109310.0,0.55675408]
[1748020343684,0.3392837,109320.0,109310.0,0.54760587]
[1748020343890,0.3392837,109320.0,109310.0,0.55675416]
[1748020344104,0.3392837,109320.0,109310.0,0.57665191]
[1748020344324,0.3392837,109320.0,109310.0,0.55835541]
[1748020344543,0.35158989,109320.0,109310.0,0.01074954]
[1748020344778,0.35258989,109320.0,109310.0,0.28498954]
[1748020345207,0.35358989,109320.0,109310.0,0.27424]
[1748020345425,0.25461399,109310.0,109300.0,0.37686113]
[1748020345654,0.34415955,109310.0,109300.0,0.37686113]
[1748020345866,0.34415955,109310.0,109300.0,0.65106113]
[1748020346307,0.34415955,109310.0,109300.0,0.64031159]
[1748020347348,0.34415955,109310.0,109300.0,0.36611159]
[1748020347565,0.43368106,109310.0,109300.0,0.64031159]
[1748020348220,0.34415955,109310.0,109300.0,0.64031159]
[1748020348662,0.34415955,109310.0,109300.0,0.64893571]
[1748020348872,0.34415955,109310.0,109300.0,0.37473571]
[1748020349086,0.34515955,109310.0,109300.0,0.64893571]
[1748020349294,0.34615955,109310.0,109300.0,0.64893571]
[1748020350010,0.40305386,109310.0,109300.0,0.64893571]
[1748020351298,0.34615955,109310.0,109300.0,0.64893571]
[1748020355413,0.34615955,109310.0,109300.0,0.37473571]
[1748020355613,0.34615955,109310.0,109300.0,0.64035159]
[1748020356166,0.34615955,109310.0,109300.0,0.64039159]
[1748020361777,0.10069326,109310.0,109300.0,1.5280142]
[1748020361988,0.31110317,109310.0,109300.0,1.54631237]
[1748020362197,0.11898909,109310.0,109300.0,1.56410619]
[1748020362402,0.31110308,109310.0,109300.0,1.56410628]
[1748020362845,0.31110308,109310.0,109300.0,1.55495732]
[1748020363217,0.002,109310.0,109300.0,1.57325465]
[1748020363440,0.01929533,109310.0,109300.0,1.57325465]
[1748020363657,0.02844303,109310.0,109300.0,1.57325465]
[1748020363866,0.02744303,109310.0,109300.0,1.57325465]
[1748020364309,0.02744295,109310.0,109300.0,1.57325465]
[1748020364932,0.01829516,109310.0,109300.0,1.57325465]
[1748020365140,0.02744295,109310.0,109300.0,1.57325465]
[1748020365558,0.01829516,109310.0,109300.0,1.57325465]
[1748020365766,0.01829516,109310.0,109300.0,1.60625465]
[1748020366384,0.02744286,109310.0,109300.0,1.60625465]
[1748020367332,0.20124425,109320.0,109310.0,0.53211416]
[1748020367554,0.29078981,109320.0,109310.0,0.52296587]
[1748020367762,0.29078981,109320.0,109310.0,0.54126228]
[1748020367983,0.10783938,109320.0,109310.0,0.55041023]
[1748020368203,0.12613353,109320.0,109310.0,0.58767575]
[1748020368545,0.12613353,109320.0,109310.0,0.5785278]
[1748020368761,0.13528098,109320.0,109310.0,0.58767584]
[1748020368988,0.12713353,109320.0,109310.0,0.96421968]
[1748020369222,0.31008334,109320.0,109310.0,0.9642196]
[1748020369443,0.1271342,109320.0,109310.0,0.98251576]
[1748020369880,0.1271342,109320.0,109310.0,0.9820114]
[1748020370119,0.31008334,109320.0,109310.0,0.97286328]
[1748020370306,0.31108334,109320.0,109310.0,0.97286328]
[1748020370563,0.31108334,109320.0,109310.0,0.9820114]
[1748020371730,0.31108334,109320.0,109310.0,0.00864368]
[1748020371731,1.16696468,109320.0,109310.0,0.00864368]
[1748020371951,0.19211399,109310.0,109300.0,0.00019159]
[1748020372177,0.78112154,109310.0,109300.0,0.00019159]
[1748020374238,0.78312154,109310.0,109300.0,0.00019159]
[1748020374445,0.87264305,109310.0,109300.0,0.00019159]
[1748020375081,0.87464305,109310.0,109300.0,0.00019159]
[1748020375294,0.80072298,109310.0,109300.0,0.00019159]
[1748020375506,0.34935955,109310.0,109300.0,0.00019159]
[1748020376142,0.34935955,109310.0,109300.0,0.27439159]
[1748020376801,0.31715955,109310.0,109300.0,0.63851159]
[1748020379956,0.34905955,109310.0,109300.0,0.63851159]
[1748020380188,0.34905955,109310.0,109300.0,0.63855159]
[1748020383779,0.02744863,109290.0,109280.0,0.98146341]
[1748020383921,0.29999354,109290.0,109280.0,1.3460909]
[1748020384367,0.25036587,109310.0,109300.0,0.00773729]
[1748020384598,0.33991143,109310.0,109300.0,0.37185729]
[1748020384988,0.33991143,109310.0,109300.0,0.64609729]
[1748020385347,0.33791143,109310.0,109300.0,0.64609729]
[1748020386008,0.33591143,109310.0,109300.0,0.64609729]
[1748020386431,0.33791143,109310.0,109300.0,0.64609729]
[1748020387201,0.28365972,109310.0,109300.0,0.83822903]
[1748020387400,0.29280776,109310.0,109300.0,0.8290799]
[1748020387806,0.29480776,109310.0,109300.0,1.1690799]
[1748020388442,0.28565972,109310.0,109300.0,0.98609729]
[1748020388791,0.31605972,109310.0,109300.0,1.1690799]
[1748020389777,0.31605972,109310.0,109300.0,0.71185729]
[1748020389981,0.34895972,109310.0,109300.0,0.98605729]
[1748020390185,0.34895972,109310.0,109300.0,0.34773729]
[1748020390406,0.34895972,109310.0,109300.0,0.64605729]
[1748020391944,0.31605972,109310.0,109300.0,0.00773729]
[1748020392161,0.0609,109300.0,109260.0,0.01074954]
[1748020392382,0.62407746,109270.0,109260.0,0.01074954]
[1748020392597,0.71362302,109270.0,109260.0,0.01074954]
[1748020392811,0.25530191,109260.0,109250.0,0.2742]
[1748020393278,0.2013724,109250.0,109240.0,0.52508311]
[1748020393487,0.28176515,109250.0,109240.0,1.16340311]
[1748020393696,0.28176515,109250.0,109240.0,1.16355477]
[1748020393905,0.28176515,109250.0,109240.0,0.98047166]
[1748020394360,0.28176515,109250.0,109240.0,0.64962581]
[1748020394571,0.0986982,109250.0,109240.0,0.86017003]
[1748020394790,0.00915181,109260.0,109250.0,0.52306636]
[1748020395004,0.20131703,109280.0,109270.0,0.54133571]
[1748020395217,0.00915005,109280.0,109270.0,1.57461496]
[1748020395427,0.01830026,109280.0,109270.0,1.58376635]
[1748020395657,0.22876818,109280.0,109270.0,0.73492]
[1748020395898,0.20131745,109280.0,109270.0,1.37332]
[1748020396119,0.29086301,109280.0,109270.0,1.37332]
[1748020396338,0.29086301,109280.0,109270.0,0.73492]
[1748020396554,0.29086301,109280.0,109270.0,1.37332]
[1748020396803,0.09869586,109280.0,109270.0,1.58380675]
[1748020397035,0.11699705,109280.0,109270.0,1.58780675]
[1748020397258,0.30916395,109280.0,109270.0,1.5695044]
[1748020397494,0.30001365,109280.0,109270.0,1.5695044]
[1748020397717,0.29086318,109280.0,109270.0,1.73866224]
[1748020398367,0.29086318,109280.0,109270.0,1.37732]
[1748020398565,0.29086318,109280.0,109270.0,1.37932]
[1748020398779,0.29086318,109280.0,109270.0,1.38847164]
[1748020399120,0.28171246,109280.0,109270.0,0.75007164]
[1748020399541,0.27256166,109280.0,109270.0,1.56235285]
[1748020399754,0.27256166,109280.0,109270.0,0.92395285]
[1748020399996,0.27256166,109280.0,109270.0,0.74092]
[1748020400174,0.27256166,109280.0,109270.0,1.56235285]
[1748020400379,0.27256166,109280.0,109270.0,0.93310449]
[1748020400583,0.27256166,109280.0,109270.0,1.37932]
[1748020400874,0.37941776,109280.0,109270.0,0.28024]
[1748020401649,0.37941776,109280.0,109270.0,0.27624]
[1748020401858,0.37941776,109280.0,109270.0,0.27724]
[1748020402088,0.37941776,109280.0,109270.0,0.27824]
[1748020402306,0.37941776,109280.0,109270.0,0.001]
[1748020402486,0.37941776,109280.0,109270.0,0.27524]
[1748020402692,0.37941776,109280.0,109270.0,0.27724]
[1748020403276,0.37941776,109280.0,109270.0,0.003]
[1748020403519,1.02356166,109280.0,109270.0,0.27724]
[1748020404801,0.30366166,109280.0,109270.0,1.16161509]
[1748020405012,0.30366166,109280.0,109270.0,0.97858224]
[1748020405013,0.27256166,109280.0,109270.0,0.97858224]
[1748020407655,0.27256166,109280.0,109270.0,0.61724]
[1748020407868,0.27256166,109280.0,109270.0,0.97858224]
[1748020412118,0.27256166,109280.0,109270.0,0.70434224]
[1748020412329,0.27256166,109280.0,109270.0,0.97862224]
[1748020414310,0.33636166,109280.0,109270.0,0.6418]
[1748020414741,0.27256166,109280.0,109270.0,1.00314224]
[1748020416673,0.27256166,109280.0,109270.0,0.6418]
[1748020418533,0.30436166,109280.0,109270.0,0.6418]
[1748020419867,0.33636166,109280.0,109270.0,0.6418]
[1748020420280,0.33636166,109280.0,109270.0,0.003]
[1748020420522,0.33636166,109280.0,109270.0,0.27728]
[1748020420922,0.33636166,109280.0,109270.0,0.003]
[1748020421468,0.6977039,109280.0,109270.0,0.003]
[1748020422553,0.6977039,109280.0,109270.0,0.001]
[1748020422761,0.78722541,109280.0,109270.0,0.001]
[1748020423203,0.26405397,109260.0,109250.0,0.36456]
[1748020423410,0.35359953,109260.0,109250.0,0.36456]
[1748020423617,0.35359953,109260.0,109250.0,0.63884]
[1748020424014,0.35359953,109260.0,109240.0,0.00215166]
[1748020424166,0.34671004,109250.0,109240.0,0.36671166]